fUSD/lending_fUSD_20240825
["ID","MTS","AMOUNT","RATE_DAILY","PERIOD"]
[335902605,1724580632803,-2041.17672666,0.00010899,2]
[335902606,1724580632813,-2041.17672666,0.00010899,2]
[335902607,1724580632822,-2041.17672666,0.00010899,2]
[335902608,1724580632832,-2041.17672666,0.00010899,2]
[335902609,1724580632841,-2041.17672666,0.00010899,2]
[335902610,1724580632851,-2041.17672666,0.00010899,2]
[335902611,1724580632860,-494.41856319,0.00010899,2]
[335902614,1724580634125,-1546.75816347,0.00010899,2]
[335902615,1724580634135,-441.40702541,0.000109,2]
[335902616,1724580634149,-1151.55012815,0.000109,2]
[335902617,1724580634162,-448.2195731,0.000109,2]
[335902618,1724580634172,-198.848269,0.000109,2]
[335902619,1724580634187,-360.00803064,0.000109,2]
[335902620,1724580634200,-639.99196936,0.000109,2]
[335902621,1724580634210,-150.47985208,0.000109,2]
[335902622,1724580634220,-1463.14460343,0.000109,2]
[335902623,1724580634230,-724.01591432,0.000109,2]
[335902624,1724580634243,-352.37802146,0.000109,2]
[335902625,1724580634253,-150.47985205,0.000109,2]
[335902626,1724580634264,-150.47985205,0.000109,2]
[335902627,1724580634275,-137.91049829,0.000109,2]
[335902630,1724580640587,-12.56935376,0.000109,2]
[335902631,1724580640597,-332.72750831,0.000109,2]
[335902632,1724580640607,-500.0,0.00010901,2]
[335902633,1724580640616,-200.0,0.00010959,2]
[335902634,1724580640626,-499.95,0.00010959,2]
[335902635,1724580640635,-155.55,0.00010959,2]
[335902636,1724580640645,-1000.0,0.0001097,2]
[335902637,1724580640655,-1000.0,0.0001097,2]
[335902638,1724580640664,-1000.0,0.0001097,2]
[335902639,1724580640674,-1000.0,0.0001097,2]
[335902640,1724580640683,-1000.0,0.0001097,2]
[335902641,1724580640694,-1000.0,0.0001097,2]
[335902642,1724580640703,-1000.0,0.0001097,2]
[335902643,1724580640713,-1000.0,0.0001097,2]
[335902644,1724580640722,-1000.0,0.0001097,2]
[335902645,1724580640732,-1000.0,0.0001097,2]
[335902646,1724580640741,-1000.0,0.0001097,2]
[335902647,1724580640751,-1153.30197039,0.0001097,2]
[335902648,1724580640761,-500.0,0.0001097,2]
[335902649,1724580640771,-500.0,0.0001097,2]
[335902650,1724580640780,-500.0,0.0001097,2]
[335902651,1724580640790,-500.0,0.0001097,2]
[335902652,1724580640799,-500.0,0.0001097,2]
[335902653,1724580640809,-500.0,0.0001097,2]
[335902654,1724580640819,-500.0,0.0001097,2]
[335902655,1724580640829,-500.0,0.0001097,2]
[335902656,1724580640839,-500.0,0.0001097,2]
[335902657,1724580640849,-708.57921562,0.0001097,2]
[335902659,1724580640858,-231.74744806,0.00010973,2]
[335902660,1724580640869,-200.0,0.00010973,2]
[335902663,1724580640879,-151.24,0.00010976,2]
[335902664,1724580640888,-25614.46447036,0.00010979,2]
[335902666,1724580640898,-2905.53992152,0.00010984,2]
[335902669,1724580640908,-500.0,0.00010985,2]
[335902670,1724580640917,-500.0,0.00010985,2]
[335902672,1724580640927,-1088.19,0.00010985,2]
[335902674,1724580640936,-1003.77,0.00010985,2]
[335902676,1724580640946,-1654.87,0.00010985,2]
[335902678,1724580640955,-500.0,0.00010985,2]
[335902680,1724580640965,-500.0,0.00010985,2]
[335902682,1724580640975,-2337.78,0.00010985,2]
[335902685,1724580640985,-1190.77,0.00010985,2]
[335902686,1724580640994,-792.52,0.00010985,2]
[335902688,1724580641004,-500.0,0.00010985,2]
[335902690,1724580641014,-1203.13,0.00010985,2]
[335902692,1724580641023,-1636.67,0.00010985,2]
[335902694,1724580641032,-1825.83,0.00010985,2]
[335902696,1724580641042,-500.0,0.00010985,2]
[335902698,1724580641050,-500.0,0.00010985,2]
[335902700,1724580641061,-500.0,0.00010985,2]
[335902702,1724580641073,-1592.47,0.00010985,2]
[335902704,1724580641083,-500.0,0.00010985,2]
[335902706,1724580641092,-500.0,0.00010985,2]
[335902708,1724580641102,-1293.96,0.00010985,2]
[335902710,1724580641112,-781.66,0.00010985,2]
[335902712,1724580641121,-741.22,0.00010985,2]
[335902714,1724580641131,-500.0,0.00010985,2]
[335902716,1724580641140,-100000.0,0.00010985,2]
[335902718,1724580641154,-91857.11691852,0.00010985,2]
[335902720,1724580641164,-500.0,0.00010985,2]
[335902722,1724580641173,-1758.59,0.00010985,2]
[335902723,1724580641183,-1758.59,0.00010985,2]
[335902724,1724580641192,-693.59,0.00010985,2]
[335902725,1724580641201,-500.0,0.00010985,2]
[335902726,1724580641210,-500.0,0.00010985,2]
[335902727,1724580641219,-714.29,0.00010985,2]
[335902728,1724580641228,-500.0,0.00010985,2]
[335902729,1724580641238,-922.95,0.00010985,2]
[335902730,1724580641247,-533.78,0.00010985,2]
[335902731,1724580641256,-533.78,0.00010985,2]
[335902732,1724580641265,-500.0,0.00010985,2]
[335902733,1724580641275,-12553.2,0.00010985,2]
[335902734,1724580641284,-500.0,0.00010986,2]
[335902735,1724580641293,-500.0,0.00010986,2]
[335902736,1724580641303,-500.0,0.00010986,2]
[335902737,1724580641312,-500.0,0.00010986,2]
[335902738,1724580641321,-500.0,0.00010986,2]
[335902739,1724580641330,-1200.33,0.00010986,2]
[335902740,1724580641339,-500.0,0.00010986,2]
[335902741,1724580641349,-522.34222772,0.00010986,2]
[335902742,1724580641358,-500.0,0.00010986,2]
[335902743,1724580641367,-500.0,0.00010986,2]
[335902744,1724580641377,-500.0,0.00010986,2]
[335902745,1724580641386,-500.0,0.00010986,2]
[335902746,1724580641396,-500.0,0.00010986,2]
[335902747,1724580641405,-500.0,0.00010986,2]
[335902748,1724580641414,-500.0,0.00010986,2]
[335902749,1724580641425,-500.0,0.00010986,2]
[335902750,1724580641434,-500.0,0.00010986,2]
[335902751,1724580641444,-500.0,0.00010986,2]
[335902752,1724580641453,-500.0,0.00010986,2]
[335902753,1724580641463,-500.0,0.00010986,2]
[335902754,1724580641472,-500.0,0.00010986,2]
[335902755,1724580641482,-500.0,0.00010986,2]
[335902756,1724580641492,-1382.24,0.00010986,2]
[335902757,1724580641503,-500.0,0.00010986,2]
[335902758,1724580641513,-533.61,0.00010986,2]
[335902759,1724580641522,-500.0,0.00010986,2]
[335902760,1724580641531,-1002.6,0.00010986,2]
[335902761,1724580641540,-664.63,0.00010986,2]
[335902762,1724580641550,-500.0,0.00010986,2]
[335902763,1724580641559,-822.57,0.00010986,2]
[335902764,1724580641567,-538.48,0.00010986,2]
[335902765,1724580641576,-404.56503887,0.00010986,2]
[335902766,1724580641586,-748.79,0.00010986,2]
[335902767,1724580641595,-307.54372698,0.00010986,2]
[335902768,1724580641604,-514.94,0.00010986,2]
[335902769,1724580641613,-500.0,0.00010986,2]
[335902770,1724580641622,-500.0,0.00010986,2]
[335902771,1724580641631,-179.49384636,0.00010986,2]
[335902772,1724580641640,-500.0,0.00010986,2]
[335902773,1724580641650,-500.0,0.00010986,2]
[335902774,1724580641659,-500.0,0.00010986,2]
[335902775,1724580641668,-500.0,0.00010986,2]
[335902776,1724580641678,-500.0,0.00010986,2]
[335902777,1724580641687,-500.0,0.00010986,2]
[335902778,1724580641696,-500.0,0.00010986,2]
[335902779,1724580641705,-723.67,0.00010986,2]
[335902780,1724580641715,-500.0,0.00010986,2]
[335902781,1724580641724,-500.0,0.00010986,2]
[335902782,1724580641734,-500.0,0.00010986,2]
[335902783,1724580641743,-500.0,0.00010986,2]
[335902784,1724580641753,-500.0,0.00010986,2]
[335902785,1724580641762,-2485.05,0.00010986,2]
[335902786,1724580641772,-500.0,0.00010986,2]
[335902787,1724580641781,-500.0,0.00010986,2]
[335902788,1724580641791,-500.0,0.00010986,2]
[335902789,1724580641801,-500.0,0.00010986,2]
[335902790,1724580641810,-500.0,0.00010986,2]
[335902791,1724580641819,-500.0,0.00010986,2]
[335902792,1724580641829,-500.0,0.00010986,2]
[335902793,1724580641839,-500.0,0.00010986,2]
[335902794,1724580641848,-603.22,0.00010986,2]
[335902795,1724580641858,-500.0,0.00010986,2]
[335902796,1724580641868,-500.0,0.00010986,2]
[335902797,1724580641878,-500.0,0.00010986,2]
[335902798,1724580641887,-500.0,0.00010986,2]
[335902799,1724580641896,-500.0,0.00010986,2]
[335902800,1724580641905,-500.0,0.00010986,2]
[335902801,1724580641914,-500.0,0.00010986,2]
[335902802,1724580641923,-500.0,0.00010986,2]
[335902803,1724580641934,-614.22,0.00010986,2]
[335902804,1724580641944,-500.0,0.00010986,2]
[335902805,1724580641953,-500.0,0.00010986,2]
[335902806,1724580641962,-248.49323807,0.00010986,2]
[335902807,1724580641971,-832.4,0.00010986,2]
[335902808,1724580641981,-3171.825,0.00010986,2]
[335902809,1724580641990,-500.0,0.00010986,2]
[335902810,1724580642000,-500.0,0.00010986,2]
[335902811,1724580642009,-777.65,0.00010986,2]
[335902812,1724580642018,-500.0,0.00010986,2]
[335902813,1724580642028,-500.0,0.00010986,2]
[335902814,1724580642037,-500.0,0.00010986,2]
[335902815,1724580642046,-500.0,0.00010986,2]
[335902816,1724580642055,-500.0,0.00010986,2]
[335902817,1724580642066,-500.0,0.00010986,2]
[335902818,1724580642077,-500.0,0.00010986,2]
[335902819,1724580642086,-500.0,0.00010986,2]
[335902820,1724580642095,-500.0,0.00010986,2]
[335902821,1724580642105,-500.0,0.00010986,2]
[335902822,1724580642116,-500.0,0.00010986,2]
[335902823,1724580642125,-500.0,0.00010986,2]
[335902824,1724580642135,-500.0,0.00010986,2]
[335902825,1724580642146,-500.0,0.00010986,2]
[335902826,1724580642156,-500.0,0.00010986,2]
[335902827,1724580642165,-500.0,0.00010986,2]
[335902828,1724580642175,-500.0,0.00010986,2]
[335902829,1724580642184,-500.0,0.00010986,2]
[335902830,1724580642194,-1757.5,0.00010986,2]
[335902831,1724580642203,-500.0,0.00010986,2]
[335902832,1724580642215,-255.64,0.00010986,2]
[335902833,1724580642224,-2167.53,0.00010986,2]
[335902834,1724580642235,-500.0,0.00010986,2]
[335902835,1724580642244,-500.0,0.00010986,2]
[335902836,1724580642254,-2052.47,0.00010986,2]
[335902837,1724580642263,-500.0,0.00010986,2]
[335902838,1724580642272,-500.0,0.00010986,2]
[335902839,1724580642281,-500.0,0.00010986,2]
[335902840,1724580642291,-500.0,0.00010986,2]
[335902841,1724580642300,-500.0,0.00010986,2]
[335902842,1724580642310,-500.0,0.00010986,2]
[335902843,1724580642320,-505.61,0.00010986,2]
[335902844,1724580642330,-500.0,0.00010986,2]
[335902845,1724580642339,-500.0,0.00010986,2]
[335902846,1724580642349,-500.0,0.00010986,2]
[335902847,1724580642358,-500.0,0.00010986,2]
[335902848,1724580642367,-1007.1,0.00010986,2]
[335902849,1724580642377,-22148.243876,0.00010986,2]
[335902850,1724580642387,-22148.243876,0.00010986,2]
[335902851,1724580642396,-500.0,0.00010986,2]
[335902852,1724580642405,-1139.99,0.00010986,2]
[335902853,1724580642415,-1139.99,0.00010986,2]
[335902854,1724580642425,-595.81,0.00010986,2]
[335902855,1724580642435,-1526.56,0.00010986,2]
[335902856,1724580642445,-595.81,0.00010986,2]
[335902857,1724580642455,-500.0,0.00010986,2]
[335902858,1724580642464,-3917.05,0.00010986,2]
[335902859,1724580642474,-3007.5,0.00010986,2]
[335902860,1724580642483,-1619.27,0.00010986,2]
[335902861,1724580642493,-988.5,0.00010986,2]
[335902862,1724580642502,-500.0,0.00010986,2]
[335902863,1724580642512,-500.0,0.00010986,2]
[335902864,1724580642521,-500.0,0.00010986,2]
[335902865,1724580642531,-500.0,0.00010986,2]
[335902866,1724580642540,-500.0,0.00010986,2]
[335902867,1724580642550,-500.0,0.00010986,2]
[335902868,1724580642559,-500.0,0.00010986,2]
[335902869,1724580642569,-500.0,0.00010986,2]
[335902870,1724580642578,-500.0,0.00010986,2]
[335902871,1724580642587,-500.0,0.00010986,2]
[335902872,1724580642597,-870.38,0.00010986,2]
[335902873,1724580642607,-870.38,0.00010986,2]
[335902874,1724580642616,-500.0,0.00010986,2]
[335902875,1724580642626,-500.0,0.00010986,2]
[335902876,1724580642635,-1367.97,0.00010986,2]
[335902877,1724580642645,-500.0,0.00010986,2]
[335902878,1724580642654,-500.0,0.00010986,2]
[335902879,1724580642664,-500.0,0.00010986,2]
[335902880,1724580642673,-553.29,0.00010986,2]
[335902881,1724580642682,-500.0,0.00010986,2]
[335902882,1724580642692,-500.0,0.00010986,2]
[335902883,1724580642700,-790.89,0.00010986,2]
[335902884,1724580642709,-500.0,0.00010986,2]
[335902885,1724580642719,-500.0,0.00010986,2]
[335902886,1724580642728,-1371.51,0.00010986,2]
[335902887,1724580642738,-500.0,0.00010986,2]
[335902888,1724580642748,-1371.51,0.00010986,2]
[335902889,1724580642757,-623.86,0.00010986,2]
[335902890,1724580642766,-500.0,0.00010986,2]
[335902891,1724580642775,-500.0,0.00010986,2]
[335902892,1724580642785,-1239.41,0.00010986,2]
[335902893,1724580642793,-500.0,0.00010986,2]
[335902894,1724580642803,-1482.36,0.00010986,2]
[335902895,1724580642812,-500.0,0.00010986,2]
[335902896,1724580642821,-500.0,0.00010986,2]
[335902897,1724580642830,-11357.84,0.00010986,2]
[335902898,1724580642840,-500.0,0.00010986,2]
[335902899,1724580642850,-11357.84,0.00010986,2]
[335902900,1724580642859,-1456.94,0.00010986,2]
[335902901,1724580642868,-500.0,0.00010986,2]
[335902902,1724580642877,-500.0,0.00010986,2]
[335902903,1724580642886,-954.04,0.00010986,2]
[335902904,1724580642895,-500.0,0.00010986,2]
[335902905,1724580642904,-5220.21,0.00010986,2]
[335902906,1724580642913,-530.23,0.00010986,2]
[335902907,1724580642922,-530.23,0.00010986,2]
[335902908,1724580642933,-988.25,0.00010986,2]
[335902909,1724580642943,-988.25,0.00010986,2]
[335902910,1724580642952,-884.05,0.00010986,2]
[335902911,1724580642961,-601.49,0.00010986,2]
[335902912,1724580642970,-642.21,0.00010986,2]
[335902913,1724580642979,-820.91,0.00010986,2]
[335902914,1724580642988,-820.91,0.00010986,2]
[335902915,1724580642997,-1846.94,0.00010986,2]
[335902916,1724580643007,-718.69,0.00010986,2]
[335902917,1724580643016,-693.24,0.00010986,2]
[335902918,1724580643025,-1129.64,0.00010986,2]
[335902919,1724580643034,-500.0,0.00010986,2]
[335902920,1724580643044,-1129.64,0.00010986,2]
[335902921,1724580643053,-500.0,0.00010986,2]
[335902922,1724580643064,-500.0,0.00010986,2]
[335902923,1724580643077,-500.0,0.00010986,2]
[335902924,1724580643086,-500.0,0.00010986,2]
[335902925,1724580643096,-500.0,0.00010986,2]
[335902926,1724580643107,-500.0,0.00010986,2]
[335902927,1724580643116,-500.0,0.00010986,2]
[335902928,1724580643126,-500.0,0.00010986,2]
[335902929,1724580643135,-500.0,0.00010986,2]
[335902930,1724580643146,-500.0,0.00010986,2]
[335902931,1724580643155,-1088.19,0.00010986,2]
[335902932,1724580643164,-1088.19,0.00010986,2]
[335902933,1724580643173,-500.0,0.00010986,2]
[335902934,1724580643183,-1003.77,0.00010986,2]
[335902935,1724580643193,-1003.77,0.00010986,2]
[335902936,1724580643203,-500.0,0.00010986,2]
[335902937,1724580643212,-992.67,0.00010986,2]
[335902938,1724580643223,-500.0,0.00010986,2]
[335902939,1724580643232,-900.2,0.00010986,2]
[335902940,1724580643241,-1654.87,0.00010986,2]
[335902941,1724580643251,-1654.87,0.00010986,2]
[335902942,1724580643260,-500.0,0.00010986,2]
[335902943,1724580643270,-500.0,0.00010986,2]
[335902944,1724580643279,-500.0,0.00010986,2]
[335902945,1724580643289,-500.0,0.00010986,2]
[335902947,1724580643298,-500.0,0.00010986,2]
[335902948,1724580643307,-1119.43,0.00010986,2]
[335902949,1724580643317,-500.0,0.00010986,2]
[335902950,1724580643326,-335.96,0.00010986,2]
[335902951,1724580643336,-3332.43,0.00010986,2]
[335902952,1724580643345,-3332.43,0.00010986,2]
[335902953,1724580643355,-500.0,0.00010986,2]
[335902954,1724580643364,-2337.78,0.00010986,2]
[335902955,1724580643374,-2337.78,0.00010986,2]
[335902956,1724580643382,-500.0,0.00010986,2]
[335902958,1724580643392,-500.0,0.00010986,2]
[335902960,1724580643401,-500.0,0.00010986,2]
[335902962,1724580643410,-500.0,0.00010986,2]
[335902963,1724580643420,-500.0,0.00010986,2]
[335902964,1724580643430,-567.94,0.00010986,2]
[335902965,1724580643439,-500.0,0.00010986,2]
[335902966,1724580643449,-236.92640114,0.00010986,2]
[335902967,1724580643459,-1190.77,0.00010986,2]
[335902968,1724580643468,-1190.77,0.00010986,2]
[335902969,1724580643478,-500.0,0.00010986,2]
[335902970,1724580643487,-792.52,0.00010986,2]
[335902971,1724580643497,-792.52,0.00010986,2]
[335902972,1724580643506,-500.0,0.00010986,2]
[335902973,1724580643516,-219.96239897,0.00010986,2]
[335902974,1724580643525,-500.0,0.00010986,2]
[335902975,1724580643535,-500.0,0.00010986,2]
[335902976,1724580643544,-500.0,0.00010986,2]
[335902977,1724580643553,-265.24,0.00010986,2]
[335902978,1724580643563,-1203.13,0.00010986,2]
[335902979,1724580643572,-1203.13,0.00010986,2]
[335902980,1724580643582,-500.0,0.00010986,2]
[335902981,1724580643592,-500.0,0.00010986,2]
[335902982,1724580643602,-500.0,0.00010986,2]
[335902983,1724580643611,-1636.67,0.00010986,2]
[335902984,1724580643620,-500.0,0.00010986,2]
[335902985,1724580643630,-1636.67,0.00010986,2]
[335902986,1724580643640,-500.0,0.00010986,2]
[335902987,1724580643649,-880.18,0.00010986,2]
[335902988,1724580643659,-500.0,0.00010986,2]
[335902989,1724580643668,-500.0,0.00010986,2]
[335902990,1724580643677,-1825.83,0.00010986,2]
[335902991,1724580643686,-1825.83,0.00010986,2]
[335902992,1724580643696,-500.0,0.00010986,2]
[335902993,1724580643705,-500.0,0.00010986,2]
[335902994,1724580643715,-500.0,0.00010986,2]
[335902995,1724580643724,-500.0,0.00010986,2]
[335902997,1724580643734,-500.0,0.00010986,2]
[335902998,1724580643743,-500.0,0.00010986,2]
[335902999,1724580643752,-500.0,0.00010986,2]
[335903000,1724580643762,-500.0,0.00010986,2]
[335903001,1724580643771,-500.0,0.00010986,2]
[335903002,1724580643780,-500.0,0.00010986,2]
[335903003,1724580643789,-500.0,0.00010986,2]
[335903004,1724580643798,-500.0,0.00010986,2]
[335903005,1724580643807,-500.0,0.00010986,2]
[335903006,1724580643817,-500.0,0.00010986,2]
[335903007,1724580643827,-500.0,0.00010986,2]
[335903008,1724580643837,-992.22,0.00010986,2]
[335903009,1724580643846,-660.97,0.00010986,2]
[335903010,1724580643856,-1592.47,0.00010986,2]
[335903011,1724580643866,-1592.47,0.00010986,2]
[335903012,1724580643875,-500.0,0.00010986,2]
[335903013,1724580643885,-500.0,0.00010986,2]
[335903014,1724580643894,-500.0,0.00010986,2]
[335903015,1724580643903,-720.85,0.00010986,2]
[335903017,1724580643912,-720.85,0.00010986,2]
[335903019,1724580643922,-500.0,0.00010986,2]
[335903020,1724580643932,-500.0,0.00010986,2]
[335903021,1724580643942,-642.74,0.00010986,2]
[335903022,1724580643952,-500.0,0.00010986,2]
[335903023,1724580643962,-500.0,0.00010986,2]
[335903024,1724580643972,-500.0,0.00010986,2]
[335903025,1724580643982,-500.0,0.00010986,2]
[335903026,1724580643991,-1194.72,0.00010986,2]
[335903027,1724580644001,-1293.96,0.00010986,2]
[335903028,1724580644011,-966.99,0.00010986,2]
[335903029,1724580644020,-1293.96,0.00010986,2]
[335903030,1724580644030,-577.86,0.00010986,2]
[335903031,1724580644039,-500.0,0.00010986,2]
[335903032,1724580644049,-500.0,0.00010986,2]
[335903033,1724580644058,-1423.25,0.00010986,2]
[335903034,1724580644071,-500.0,0.00010986,2]
[335903035,1724580644081,-500.0,0.00010986,2]
[335903036,1724580644090,-781.66,0.00010986,2]
[335903037,1724580644100,-781.66,0.00010986,2]
[335903038,1724580644110,-500.0,0.00010986,2]
[335903039,1724580644119,-500.0,0.00010986,2]
[335903040,1724580644128,-1217.76,0.00010986,2]
[335903041,1724580644137,-3247.37,0.00010986,2]
[335903042,1724580644148,-3247.37,0.00010986,2]
[335903043,1724580644158,-500.0,0.00010986,2]
[335903044,1724580644167,-762.67,0.00010986,2]
[335903045,1724580644176,-500.0,0.00010986,2]
[335903046,1724580644186,-500.0,0.00010986,2]
[335903047,1724580644196,-500.0,0.00010986,2]
[335903048,1724580644205,-500.0,0.00010986,2]
[335903049,1724580644214,-741.22,0.00010986,2]
[335903050,1724580644224,-500.0,0.00010986,2]
[335903051,1724580644391,-741.22,0.00010986,2]
[335903052,1724580644401,-500.0,0.00010986,2]
[335903053,1724580644411,-1537.86,0.00010986,2]
[335903054,1724580644420,-1537.86,0.00010986,2]
[335903055,1724580644429,-500.0,0.00010986,2]
[335903056,1724580644439,-500.0,0.00010986,2]
[335903057,1724580644449,-500.0,0.00010986,2]
[335903058,1724580644459,-3145.43,0.00010986,2]
[335903059,1724580644468,-500.0,0.00010986,2]
[335903060,1724580644478,-695.47,0.00010986,2]
[335903061,1724580644487,-500.0,0.00010986,2]
[335903062,1724580644496,-1648.84,0.00010986,2]
[335903063,1724580644506,-1648.84,0.00010986,2]
[335903064,1724580644515,-500.0,0.00010986,2]
[335903065,1724580644524,-1145.28,0.00010986,2]
[335903066,1724580644534,-500.0,0.00010986,2]
[335903067,1724580644543,-1145.28,0.00010986,2]
[335903068,1724580644552,-865.38,0.00010986,2]
[335903069,1724580644561,-1758.59,0.00010986,2]
[335903070,1724580644571,-1758.59,0.00010986,2]
[335903071,1724580644580,-982.69,0.00010986,2]
[335903072,1724580644589,-693.59,0.00010986,2]
[335903073,1724580644598,-693.59,0.00010986,2]
[335903074,1724580644607,-997.48,0.00010986,2]
[335903075,1724580644616,-1709.74,0.00010986,2]
[335903076,1724580644625,-2969.51,0.00010986,2]
[335903077,1724580644635,-720.18,0.00010986,2]
[335903078,1724580644644,-1249.86,0.00010986,2]
[335903079,1724580644653,-3849.65,0.00010986,2]
[335903080,1724580644662,-3849.65,0.00010986,2]
[335903081,1724580644672,-500.0,0.00010986,2]
[335903082,1724580644681,-1595.84,0.00010986,2]
[335903083,1724580644691,-500.0,0.00010986,2]
[335903084,1724580644702,-714.29,0.00010986,2]
[335903085,1724580644711,-714.29,0.00010986,2]
[335903086,1724580644721,-500.0,0.00010986,2]
[335903087,1724580644730,-500.0,0.00010986,2]
[335903088,1724580644739,-505.61521916,0.00010986,2]
[335903089,1724580644748,-443.87296454,0.00010986,2]
[335903090,1724580644758,-823.24,0.00010986,2]
[335903091,1724580644767,-823.24,0.00010986,2]
[335903092,1724580644777,-500.0,0.00010986,2]
[335903093,1724580644786,-500.0,0.00010986,2]
[335903094,1724580644796,-496.36768774,0.00010986,2]
[335903095,1724580644806,-922.95,0.00010986,2]
[335903096,1724580644817,-922.95,0.00010986,2]
[335903097,1724580644827,-533.78,0.00010986,2]
[335903098,1724580644836,-425.220001,0.00010986,2]
[335903099,1724580644847,-533.78,0.00010986,2]
[335903100,1724580644858,-307.0091252,0.00010986,2]
[335903101,1724580644868,-758.18,0.00010986,2]
[335903102,1724580644878,-12553.2,0.00010986,2]
[335903103,1724580644889,-12553.2,0.00010986,2]
[335903104,1724580644899,-9451.0,0.00010986,2]
[335903105,1724580644908,-46507.0,0.00010986,2]
[335903106,1724580644918,-71719.0,0.00010986,2]
[335903107,1724580644929,-500.0,0.00010987,2]
[335903108,1724580644939,-500.0,0.00010987,2]
[335903109,1724580644949,-501.15437438,0.00010987,2]
[335903110,1724580644959,-500.0,0.00010987,2]
[335903111,1724580644968,-500.0,0.00010987,2]
[335903112,1724580644979,-500.0,0.00010987,2]
[335903113,1724580644990,-500.0,0.00010987,2]
[335903114,1724580645001,-500.0,0.00010987,2]
[335903115,1724580645010,-500.0,0.00010987,2]
[335903116,1724580645019,-500.0,0.00010987,2]
[335903117,1724580645029,-174.05,0.00010987,2]
[335903118,1724580645039,-500.0,0.00010987,2]
[335903119,1724580645048,-500.0,0.00010987,2]
[335903120,1724580645058,-571.69,0.00010987,2]
[335903121,1724580645072,-476.95,0.00010987,2]
[335903122,1724580645081,-500.0,0.00010987,2]
[335903123,1724580645090,-500.0,0.00010987,2]
[335903124,1724580645100,-500.0,0.00010987,2]
[335903125,1724580645110,-500.0,0.00010987,2]
[335903126,1724580645119,-500.0,0.00010987,2]
[335903127,1724580645128,-358.1,0.00010987,2]
[335903128,1724580645138,-1382.24,0.00010987,2]
[335903129,1724580645148,-533.61,0.00010987,2]
[335903130,1724580645158,-579.08691245,0.00010987,2]
[335903131,1724580645167,-1002.6,0.00010987,2]
[335903132,1724580645176,-500.0,0.00010987,2]
[335903133,1724580645185,-822.57,0.00010987,2]
[335903134,1724580645195,-538.48,0.00010987,2]
[335903135,1724580645207,-748.79,0.00010987,2]
[335903136,1724580645216,-500.0,0.00010987,2]
[335903137,1724580645225,-500.0,0.00010987,2]
[335903138,1724580645234,-500.0,0.00010987,2]
[335903139,1724580645244,-500.0,0.00010987,2]
[335903140,1724580645253,-500.0,0.00010987,2]
[335903141,1724580645262,-500.0,0.00010987,2]
[335903142,1724580645271,-723.67,0.00010987,2]
[335903143,1724580645281,-500.0,0.00010987,2]
[335903144,1724580645290,-500.0,0.00010987,2]
[335903145,1724580645299,-500.0,0.00010987,2]
[335903146,1724580645308,-500.0,0.00010987,2]
[335903147,1724580645317,-2485.05,0.00010987,2]